fUSD/lending_fUSD_20260528
["ID","MTS","AMOUNT","RATE_DAILY","PERIOD"]
[423213051,1779936642000,-1968.76,0.00014999,2]
[423213052,1779936642000,-1968.76,0.00014999,2]
[423213053,1779936642000,-500.0,0.00014999,2]
[423213043,1779936642000,-500.0,0.00014999,2]
[423213045,1779936642000,-500.0,0.00014999,2]
[423213044,1779936642000,-1968.76,0.00014999,2]
[423213046,1779936642000,-1968.76,0.00014999,2]
[423213041,1779936642000,-500.0,0.00014999,2]
[423213042,1779936642000,-1968.76,0.00014999,2]
[423213048,1779936642000,-1968.76,0.00014999,2]
[423213136,1779936643000,-613.13,0.00014999,2]
[423213139,1779936643000,-613.13,0.00014999,2]
[423213137,1779936643000,-613.13,0.00014999,2]
[423213125,1779936643000,-610.41918136,0.00014999,2]
[423213121,1779936643000,-610.31,0.00014999,2]
[423213111,1779936643000,-610.31,0.00014999,2]
[423213123,1779936643000,-610.31,0.00014999,2]
[423213120,1779936643000,-610.31,0.00014999,2]
[423213138,1779936643000,-613.13,0.00014999,2]
[423213115,1779936643000,-610.31,0.00014999,2]
[423213122,1779936643000,-610.31,0.00014999,2]
[423213118,1779936643000,-610.31,0.00014999,2]
[423213134,1779936643000,-613.13,0.00014999,2]
[423213131,1779936643000,-613.13,0.00014999,2]
[423213140,1779936643000,-613.13,0.00014999,2]
[423213127,1779936643000,-613.13,0.00014999,2]
[423213129,1779936643000,-613.13,0.00014999,2]
[423213133,1779936643000,-613.13,0.00014999,2]
[423213132,1779936643000,-613.13,0.00014999,2]
[423213141,1779936643000,-613.13,0.00014999,2]
[423213143,1779936643000,-613.13,0.00014999,2]
[423213142,1779936643000,-613.13,0.00014999,2]
[423213145,1779936643000,-613.13,0.00014999,2]
[423213153,1779936643000,-500.0,0.00014999,2]
[423213117,1779936643000,-610.31,0.00014999,2]
[423213150,1779936643000,-613.35446503,0.00014999,2]
[423213135,1779936643000,-613.13,0.00014999,2]
[423213119,1779936643000,-610.31,0.00014999,2]
[423213100,1779936643000,-500.0,0.00014999,2]
[423213114,1779936643000,-610.31,0.00014999,2]
[423213148,1779936643000,-613.13,0.00014999,2]
[423213088,1779936643000,-500.0,0.00014999,2]
[423213087,1779936643000,-500.0,0.00014999,2]
[423213090,1779936643000,-544.38223571,0.00014999,2]
[423213091,1779936643000,-500.0,0.00014999,2]
[423213094,1779936643000,-500.0,0.00014999,2]
[423213089,1779936643000,-500.0,0.00014999,2]
[423213093,1779936643000,-500.0,0.00014999,2]
[423213092,1779936643000,-500.0,0.00014999,2]
[423213096,1779936643000,-500.0,0.00014999,2]
[423213097,1779936643000,-500.0,0.00014999,2]
[423213095,1779936643000,-500.0,0.00014999,2]
[423213116,1779936643000,-610.31,0.00014999,2]
[423213099,1779936643000,-500.0,0.00014999,2]
[423213098,1779936643000,-500.0,0.00014999,2]
[423213105,1779936643000,-610.31,0.00014999,2]
[423213106,1779936643000,-610.31,0.00014999,2]
[423213107,1779936643000,-610.31,0.00014999,2]
[423213108,1779936643000,-610.31,0.00014999,2]
[423213101,1779936643000,-500.0,0.00014999,2]
[423213109,1779936643000,-610.31,0.00014999,2]
[423213102,1779936643000,-500.0,0.00014999,2]
[423213103,1779936643000,-500.0,0.00014999,2]
[423213110,1779936643000,-610.31,0.00014999,2]
[423213112,1779936643000,-610.31,0.00014999,2]
[423213113,1779936643000,-610.31,0.00014999,2]
[423213104,1779936643000,-214.84,0.00014999,2]
[423213151,1779936643000,-500.0,0.00014999,2]
[423213161,1779936643000,-336.14704349,0.00014999,2]
[423213147,1779936643000,-613.13,0.00014999,2]
[423213193,1779936643000,-500.0,0.00014999,2]
[423213194,1779936643000,-500.0,0.00014999,2]
[423213190,1779936643000,-500.0,0.00014999,2]
[423213185,1779936643000,-500.0,0.00014999,2]
[423213183,1779936643000,-500.0,0.00014999,2]
[423213186,1779936643000,-500.0,0.00014999,2]
[423213184,1779936643000,-205.55887939,0.00014999,2]
[423213188,1779936643000,-500.0,0.00014999,2]
[423213191,1779936643000,-500.0,0.00014999,2]
[423213189,1779936643000,-500.0,0.00014999,2]
[423213187,1779936643000,-500.0,0.00014999,2]
[423213195,1779936643000,-500.0,0.00014999,2]
[423213181,1779936643000,-500.0,0.00014999,2]
[423213202,1779936643000,-912.92,0.00014999,2]
[423213198,1779936643000,-500.0,0.00014999,2]
[423213152,1779936643000,-500.0,0.00014999,2]
[423213204,1779936643000,-912.92,0.00014999,2]
[423213201,1779936643000,-199.3631312,0.00014999,2]
[423213199,1779936643000,-500.0,0.00014999,2]
[423213200,1779936643000,-243.09918433,0.00014999,2]
[423213203,1779936643000,-912.92,0.00014999,2]
[423213205,1779936643000,-912.92,0.00014999,2]
[423213206,1779936643000,-912.92,0.00014999,2]
[423213208,1779936643000,-912.92,0.00014999,2]
[423213209,1779936643000,-912.92,0.00014999,2]
[423213207,1779936643000,-912.92,0.00014999,2]
[423213197,1779936643000,-500.0,0.00014999,2]
[423213192,1779936643000,-500.0,0.00014999,2]
[423213196,1779936643000,-500.0,0.00014999,2]
[423213178,1779936643000,-500.0,0.00014999,2]
[423213182,1779936643000,-500.0,0.00014999,2]
[423213149,1779936643000,-613.13,0.00014999,2]
[423213154,1779936643000,-500.0,0.00014999,2]
[423213156,1779936643000,-500.0,0.00014999,2]
[423213159,1779936643000,-500.0,0.00014999,2]
[423213166,1779936643000,-500.0,0.00014999,2]
[423213155,1779936643000,-500.0,0.00014999,2]
[423213160,1779936643000,-500.0,0.00014999,2]
[423213165,1779936643000,-500.0,0.00014999,2]
[423213164,1779936643000,-500.0,0.00014999,2]
[423213157,1779936643000,-500.0,0.00014999,2]
[423213163,1779936643000,-500.0,0.00014999,2]
[423213158,1779936643000,-226.61703358,0.00014999,2]
[423213167,1779936643000,-500.0,0.00014999,2]
[423213180,1779936643000,-500.0,0.00014999,2]
[423213176,1779936643000,-500.0,0.00014999,2]
[423213162,1779936643000,-500.0,0.00014999,2]
[423213177,1779936643000,-500.0,0.00014999,2]
[423213175,1779936643000,-500.0,0.00014999,2]
[423213172,1779936643000,-510.00564185,0.00014999,2]
[423213168,1779936643000,-500.0,0.00014999,2]
[423213173,1779936643000,-500.0,0.00014999,2]
[423213170,1779936643000,-500.0,0.00014999,2]
[423213174,1779936643000,-500.0,0.00014999,2]
[423213171,1779936643000,-500.0,0.00014999,2]
[423213169,1779936643000,-500.0,0.00014999,2]
[423213179,1779936643000,-500.0,0.00014999,2]
[423213233,1779936644000,-357.771263,0.00015,2]
[423213235,1779936644000,-357.771263,0.00015,2]
[423213236,1779936644000,-357.771263,0.00015,2]
[423213230,1779936644000,-202.0,0.00015,2]
[423213237,1779936644000,-357.771263,0.00015,2]
[423213234,1779936644000,-357.771263,0.00015,2]
[423213232,1779936644000,-151.0,0.00015,2]
[423213239,1779936644000,-357.771263,0.00015,2]
[423213243,1779936644000,-1000.0,0.00015,2]
[423213241,1779936644000,-1000.0,0.00015,2]
[423213240,1779936644000,-357.771263,0.00015,2]
[423213242,1779936644000,-1000.0,0.00015,2]
[423213247,1779936644000,-247.377235,0.00015,2]
[423213246,1779936644000,-1000.0,0.00015,2]
[423213231,1779936644000,-151.0,0.00015,2]
[423213244,1779936644000,-1000.0,0.00015,2]
[423213238,1779936644000,-357.771263,0.00015,2]
[423213229,1779936644000,-151.0,0.00015,2]
[423213212,1779936644000,-912.92,0.00014999,2]
[423213227,1779936644000,-157657.02558156,0.00015,2]
[423213248,1779936644000,-247.377235,0.00015,2]
[423213210,1779936644000,-912.92,0.00014999,2]
[423213211,1779936644000,-912.92,0.00014999,2]
[423213214,1779936644000,-912.92,0.00014999,2]
[423213215,1779936644000,-912.92,0.00014999,2]
[423213213,1779936644000,-912.92,0.00014999,2]
[423213216,1779936644000,-912.92,0.00014999,2]
[423213224,1779936644000,-973408.13108785,0.00015,2]
[423213218,1779936644000,-912.92,0.00014999,2]
[423213220,1779936644000,-5104163.94447856,0.00015,2]
[423213217,1779936644000,-912.92,0.00014999,2]
[423213221,1779936644000,-151.71139133,0.00015,2]
[423213222,1779936644000,-7888971.93558729,0.00015,2]
[423213225,1779936644000,-2078.68861048,0.00015,2]
[423213226,1779936644000,-8091.36035297,0.00015,2]
[423213228,1779936644000,-166.05,0.00015,2]
[423213219,1779936644000,-912.9308362,0.00014999,2]
[423213251,1779936644000,-247.377235,0.00015,2]
[423213245,1779936644000,-1000.0,0.00015,2]
[423213253,1779936644000,-247.377235,0.00015,2]
[423213279,1779936644000,-501.53039463,0.00015594,2]
[423213285,1779936644000,-891.88135585,0.00015772,2]
[423213277,1779936644000,-164.78,0.00015566,2]
[423213282,1779936644000,-500.0,0.00015594,2]
[423213287,1779936644000,-654.13854035,0.00015811,2]
[423213281,1779936644000,-500.0,0.00015594,2]
[423213283,1779936644000,-623.23869147,0.00015594,2]
[423213278,1779936644000,-500.0,0.00015594,2]
[423213280,1779936644000,-500.0,0.00015594,2]
[423213284,1779936644000,-665.47,0.000156,2]
[423213286,1779936644000,-504.69,0.000158,2]
[423213289,1779936644000,-157.39,0.00015917,2]
[423213291,1779936644000,-215.50460005,0.00016,3]
[423213290,1779936644000,-1786.48291407,0.00015982,2]
[423213292,1779936644000,-300.0,0.00016,2]
[423213294,1779936644000,-595.49430469,0.00016034,2]
[423213249,1779936644000,-247.377235,0.00015,2]
[423213272,1779936644000,-255.0,0.0001509,2]
[423213273,1779936644000,-416.84,0.00015152,2]
[423213288,1779936644000,-10000.0,0.00015868,2]
[423213271,1779936644000,-2000.0,0.00015085,2]
[423213293,1779936644000,-1544.0,0.00016032,2]
[423213269,1779936644000,-218.458303,0.00015068,2]
[423213258,1779936644000,-247.377235,0.00015,2]
[423213256,1779936644000,-247.377235,0.00015,2]
[423213250,1779936644000,-247.377235,0.00015,2]
[423213260,1779936644000,-232.786626,0.00015,2]
[423213261,1779936644000,-154.638184,0.00015,2]
[423213263,1779936644000,-218.458303,0.00015068,2]
[423213259,1779936644000,-150.0,0.00015,2]
[423213266,1779936644000,-218.458303,0.00015068,2]
[423213275,1779936644000,-350.0,0.00015504,2]
[423213274,1779936644000,-157.39,0.0001531,2]
[423213267,1779936644000,-218.458303,0.00015068,2]
[423213276,1779936644000,-215.46156935,0.00015561,2]
[423213270,1779936644000,-218.458303,0.00015068,2]
[423213265,1779936644000,-218.458303,0.00015068,2]
[423213264,1779936644000,-218.458303,0.00015068,2]
[423213268,1779936644000,-218.458303,0.00015068,2]
[423213338,1779936645000,-197.66,0.00017942,2]
[423213331,1779936645000,-152.0,0.00017476,2]
[423213333,1779936645000,-736.0,0.00017605,2]
[423213335,1779936645000,-1945.9448655,0.000177,2]
[423213330,1779936645000,-151.0,0.00017476,2]
[423213332,1779936645000,-1945.9448655,0.000175,2]
[423213324,1779936645000,-1544.0,0.00017063,2]
[423213326,1779936645000,-1945.9448655,0.000171,2]
[423213329,1779936645000,-166.05,0.000173,2]
[423213348,1779936645000,-557.9,0.0001841,2]
[423213336,1779936645000,-193.576963,0.0001778,2]
[423213327,1779936645000,-157.39,0.0001713,2]
[423213337,1779936645000,-164.78,0.0001779,2]
[423213346,1779936645000,-439.07868534,0.000184,2]
[423213340,1779936645000,-439.07868534,0.00018,2]
[423213339,1779936645000,-26265.85367527,0.00018,2]
[423213342,1779936645000,-350.0,0.00018,2]
[423213341,1779936645000,-287.48779769,0.00018,2]
[423213344,1779936645000,-287.48779769,0.000182,2]
[423213347,1779936645000,-287.48779769,0.000184,2]
[423213343,1779936645000,-439.07868534,0.000182,2]
[423213351,1779936645000,-287.48779769,0.000185,2]
[423213350,1779936645000,-439.07868534,0.000185,2]
[423213353,1779936645000,-391.69,0.00018651,2]
[423213356,1779936645000,-2865.69,0.0001872,2]
[423213334,1779936645000,-1544.0,0.00017682,2]
[423213349,1779936645000,-2000.0,0.00018437,2]
[423213325,1779936645000,-1544.0,0.00017063,2]
[423213305,1779936645000,-151.0,0.00016438,2]
[423213314,1779936645000,-157.39,0.00016523,2]
[423213295,1779936645000,-356.8218731,0.00016076,2]
[423213296,1779936645000,-595.49430469,0.0001627,2]
[423213297,1779936645000,-433.0,0.00016292,2]
[423213298,1779936645000,-167.46,0.00016382,2]
[423213301,1779936645000,-337.813777,0.00016438,2]
[423213299,1779936645000,-557.9,0.00016438,2]
[423213300,1779936645000,-337.813777,0.00016438,2]
[423213303,1779936645000,-337.813777,0.00016438,2]
[423213302,1779936645000,-337.813777,0.00016438,2]
[423213310,1779936645000,-151.0,0.00016438,2]
[423213352,1779936645000,-416.84,0.00018519,2]
[423213304,1779936645000,-151.0,0.00016438,2]
[423213307,1779936645000,-151.0,0.00016438,2]
[423213328,1779936645000,-1945.9448655,0.000173,2]
[423213306,1779936645000,-151.0,0.00016438,2]
[423213308,1779936645000,-151.0,0.00016438,2]
[423213311,1779936645000,-151.0,0.00016438,2]
[423213320,1779936645000,-579.84,0.00016922,2]
[423213318,1779936645000,-416.84,0.00016835,2]
[423213319,1779936645000,-3042.85,0.00016922,2]
[423213321,1779936645000,-150.99,0.00016922,2]
[423213322,1779936645000,-9999.99,0.00016922,2]
[423213323,1779936645000,-1945.9448655,0.00017,2]
[423213312,1779936645000,-6616.0719566,0.000165,2]
[423213317,1779936645000,-2000.0,0.00016761,2]
[423213316,1779936645000,-168.32,0.00016712,2]
[423213315,1779936645000,-221.58549884,0.00016699,2]
[423213313,1779936645000,-12470.27195521,0.000165,2]
[423213309,1779936645000,-151.0,0.00016438,2]
[423213354,1779936645000,-439.07868534,0.000187,2]
[423213345,1779936645000,-25772.56,0.00018356,2]
[423213357,1779936645000,-2500.0,0.00019,2]
[423213388,1779936645000,-261.0,0.0002,2]
[423213399,1779936645000,-683.37,0.00020548,2]
[423213387,1779936645000,-400.0,0.0002,2]
[423213389,1779936645000,-711.0,0.0002,2]
[423213395,1779936645000,-213.18,0.000203,2]
[423213394,1779936645000,-416.84,0.00020202,2]
[423213392,1779936645000,-164.78,0.00020014,2]
[423213397,1779936645000,-166.05,0.000204,2]
[423213393,1779936645000,-2000.0,0.00020113,2]
[423213396,1779936645000,-557.9,0.00020381,2]
[423213412,1779936645000,-257.0,0.00021,2]
[423213413,1779936645000,-157.0,0.00021,2]
[423213411,1779936645000,-156.0,0.00021,2]
[423213403,1779936645000,-525.0,0.00020602,2]
[423213401,1779936645000,-928.0,0.00020602,2]
[423213404,1779936645000,-1240.844,0.00020602,2]
[423213406,1779936645000,-3637.0,0.00020602,2]
[423213410,1779936645000,-155.33809958,0.00021,2]
[423213400,1779936645000,-168.23287057,0.0002058,2]
[423213409,1779936645000,-1526.88520785,0.00021,2]
[423213408,1779936645000,-6111.0,0.00021,2]
[423213407,1779936645000,-15000.0,0.00021,2]
[423213405,1779936645000,-1017.108,0.00020602,2]
[423213414,1779936645000,-385.0,0.00021,2]
[423213415,1779936645000,-261.0,0.00021,2]
[423213416,1779936645000,-711.0,0.00021,2]
[423213355,1779936645000,-287.48779769,0.000187,2]
[423213390,1779936645000,-332.29,0.0002,2]
[423213398,1779936645000,-2129.0,0.00020526,2]
[423213402,1779936645000,-1277.283,0.00020602,2]
[423213381,1779936645000,-1202.22625991,0.0002,2]
[423213391,1779936645000,-653.0,0.0002,2]
[423213360,1779936645000,-163.12506766,0.00019,2]
[423213358,1779936645000,-723.12825122,0.00019,2]
[423213361,1779936645000,-1252.0,0.00019003,2]
[423213373,1779936645000,-151.0,0.00019178,2]
[423213362,1779936645000,-151.0,0.00019178,2]
[423213364,1779936645000,-151.0,0.00019178,2]
[423213370,1779936645000,-151.0,0.00019178,2]
[423213366,1779936645000,-151.0,0.00019178,2]
[423213369,1779936645000,-151.0,0.00019178,2]
[423213371,1779936645000,-151.0,0.00019178,2]
[423213367,1779936645000,-164.381603,0.00019178,2]
[423213363,1779936645000,-151.0,0.00019178,2]
[423213365,1779936645000,-151.0,0.00019178,2]
[423213359,1779936645000,-48003.35649749,0.00019,2]
[423213368,1779936645000,-151.0,0.00019178,2]
[423213372,1779936645000,-151.0,0.00019178,2]
[423213383,1779936645000,-323.0,0.0002,2]
[423213378,1779936645000,-316.0,0.000195,2]
[423213382,1779936645000,-156.0,0.0002,2]
[423213377,1779936645000,-1000.0,0.000195,2]
[423213380,1779936645000,-1000.0,0.0002,2]
[423213384,1779936645000,-257.0,0.0002,2]
[423213375,1779936645000,-151.0,0.00019178,2]
[423213386,1779936645000,-385.0,0.0002,2]
[423213385,1779936645000,-157.0,0.0002,2]
[423213376,1779936645000,-310.0,0.000195,2]
[423213374,1779936645000,-151.0,0.00019178,2]
[423213379,1779936645000,-629.86,0.00019968,2]
[423213454,1779936646000,-158.57332901,0.00021204,2]
[423213476,1779936646000,-2236.95670847,0.000223,2]
[423213458,1779936646000,-2157.14243826,0.00021752,2]
[423213445,1779936646000,-151.0,0.00021204,2]
[423213460,1779936646000,-500.0,0.00021843,2]
[423213453,1779936646000,-151.0,0.00021204,2]
[423213456,1779936646000,-181.08010149,0.00021752,2]
[423213450,1779936646000,-151.0,0.00021204,2]
[423213452,1779936646000,-151.0,0.00021204,2]
[423213451,1779936646000,-151.0,0.00021204,2]
[423213457,1779936646000,-1481.2378076,0.00021752,2]
[423213459,1779936646000,-332.29,0.000218,2]
[423213470,1779936646000,-450.0,0.00022,2]
[423213465,1779936646000,-300.0,0.00022,2]
[423213472,1779936646000,-711.0,0.00022,2]
[423213469,1779936646000,-385.0,0.00022,2]
[423213461,1779936646000,-151.0,0.00021918,2]
[423213466,1779936646000,-159.10654966,0.00022,2]
[423213471,1779936646000,-261.0,0.00022,2]
[423213462,1779936646000,-5000.0,0.00021918,2]
[423213464,1779936646000,-160.0,0.00022,2]
[423213467,1779936646000,-257.0,0.00022,2]
[423213468,1779936646000,-157.0,0.00022,2]
[423213485,1779936646000,-1592.87721992,0.00022848,2]
[423213474,1779936646000,-187.78006524,0.000223,2]
[423213483,1779936646000,-2865.69,0.00022691,2]
[423213440,1779936646000,-500.0,0.00021204,2]
[423213463,1779936646000,-210629.3979036,0.00022,4]
[423213444,1779936646000,-151.0,0.00021204,2]
[423213420,1779936646000,-151.0,0.00021204,2]
[423213441,1779936646000,-151.0,0.00021204,2]
[423213417,1779936646000,-200.0,0.00021204,2]
[423213418,1779936646000,-151.0,0.00021204,2]
[423213419,1779936646000,-174.61919141,0.00021204,2]
[423213422,1779936646000,-277.48572748,0.00021204,2]
[423213423,1779936646000,-151.0,0.00021204,2]
[423213421,1779936646000,-151.0,0.00021204,2]
[423213425,1779936646000,-1428.38747117,0.00021204,2]
[423213435,1779936646000,-151.0,0.00021204,2]
[423213436,1779936646000,-151.0,0.00021204,2]
[423213429,1779936646000,-151.0,0.00021204,2]
[423213427,1779936646000,-151.0,0.00021204,2]
[423213426,1779936646000,-151.0,0.00021204,2]
[423213424,1779936646000,-180.86370417,0.00021204,2]
[423213430,1779936646000,-2080.17592889,0.00021204,2]
[423213434,1779936646000,-500.0,0.00021204,2]
[423213432,1779936646000,-151.0,0.00021204,2]
[423213428,1779936646000,-151.0,0.00021204,2]
[423213433,1779936646000,-151.0,0.00021204,2]
[423213431,1779936646000,-644.85226615,0.00021204,2]
[423213437,1779936646000,-500.0,0.00021204,2]
[423213439,1779936646000,-151.0,0.00021204,2]
[423213447,1779936646000,-151.0,0.00021204,2]
[423213442,1779936646000,-151.0,0.00021204,2]
[423213449,1779936646000,-166.20128555,0.00021204,2]
[423213443,1779936646000,-524.76881869,0.00021204,2]
[423213446,1779936646000,-151.0,0.00021204,2]
[423213438,1779936646000,-151.0,0.00021204,2]
[423213448,1779936646000,-151.0,0.00021204,2]
[423213480,1779936646000,-1909.72,0.00022466,2]
[423213455,1779936646000,-205.50591155,0.00021752,2]
[423213478,1779936646000,-197.66,0.0002238,2]
[423213510,1779936646000,-2494.55939288,0.00023944,2]
[423213511,1779936646000,-336.34,0.00023981,15]
[423213514,1779936646000,-150.0,0.00023981,2]
[423213515,1779936646000,-150.0,0.00023981,2]
[423213518,1779936646000,-150.0,0.00023981,2]
[423213513,1779936646000,-150.0,0.00023981,2]
[423213516,1779936646000,-150.0,0.00023981,2]
[423213520,1779936646000,-166.05,0.00024,7]
[423213517,1779936646000,-150.0,0.00023981,2]
[423213519,1779936646000,-277.0,0.00023981,2]
[423213533,1779936646000,-151.0,0.00024658,2]
[423213522,1779936646000,-167.83056192,0.00024,2]
[423213523,1779936646000,-385.0,0.00024,2]
[423213530,1779936646000,-229.50662395,0.00024492,2]
[423213524,1779936646000,-500.0,0.00024,2]
[423213532,1779936646000,-230.84,0.00024658,2]
[423213534,1779936646000,-151.0,0.00024658,2]
[423213528,1779936646000,-181.0,0.00024,7]
[423213525,1779936646000,-261.0,0.00024,2]
[423213527,1779936646000,-150.0,0.00024,7]
[423213526,1779936646000,-711.0,0.00024,2]
[423213529,1779936646000,-557.9,0.00024324,2]
[423213531,1779936646000,-2586.85809042,0.00024492,2]
[423213535,1779936646000,-151.0,0.00024658,2]
[423213537,1779936646000,-1000.0,0.00024658,2]
[423213538,1779936646000,-151.0,0.00024658,2]
[423213536,1779936646000,-474.57,0.00024658,2]
[423213521,1779936646000,-257.0,0.00024,2]
[423213512,1779936646000,-150.0,0.00023981,2]
[423213484,1779936646000,-194.72792766,0.00022848,2]
[423213504,1779936646000,-525.0,0.00023602,2]
[423213475,1779936646000,-1536.04360648,0.000223,2]
[423213477,1779936646000,-557.9,0.00022353,2]
[423213479,1779936646000,-1096.42,0.00022466,2]
[423213473,1779936646000,-906.65,0.00022,2]
[423213481,1779936646000,-2175.25,0.00022466,2]
[423213482,1779936646000,-510.34381452,0.00022499,2]
[423213486,1779936646000,-2319.72410669,0.00022848,2]
[423213508,1779936646000,-209.40437684,0.00023944,2]
[423213492,1779936646000,-257.0,0.00023,2]
[423213493,1779936646000,-157.0,0.00023,2]
[423213495,1779936646000,-261.0,0.00023,2]
[423213494,1779936646000,-385.0,0.00023,2]
[423213488,1779936646000,-150.0,0.0002289,2]
[423213489,1779936646000,-167.235,0.0002289,2]
[423213487,1779936646000,-150.183,0.0002289,2]
[423213497,1779936646000,-2543.0,0.00023153,5]
[423213496,1779936646000,-711.0,0.00023,2]
[423213505,1779936646000,-1225.0,0.00023602,2]
[423213502,1779936646000,-928.0,0.00023602,2]
[423213501,1779936646000,-332.29,0.000236,2]
[423213503,1779936646000,-1272.0,0.00023602,2]
[423213506,1779936646000,-932.0,0.00023602,2]
[423213507,1779936646000,-3637.0,0.00023602,2]
[423213509,1779936646000,-563.07033564,0.00023944,2]
[423213498,1779936646000,-201.93286098,0.00023396,2]
[423213499,1779936646000,-1651.81367706,0.00023396,2]
[423213491,1779936646000,-150.316,0.0002289,2]
[423213490,1779936646000,-150.0,0.0002289,2]
[423213500,1779936646000,-2405.55389863,0.00023396,2]
[423213579,1779936647000,-3637.0,0.00026602,2]
[423213583,1779936647000,-3303.958067,0.00027,2]
[423213581,1779936647000,-197.66,0.00026818,2]
[423213577,1779936647000,-525.0,0.00026602,2]
[423213578,1779936647000,-1225.0,0.00026602,2]
[423213580,1779936647000,-323.0,0.000267,7]
[423213575,1779936647000,-928.0,0.00026602,2]
[423213574,1779936647000,-451.11251085,0.00026567,2]
[423213573,1779936647000,-27914.91476775,0.000264,2]
[423213571,1779936647000,-255.0,0.000261,2]
[423213572,1779936647000,-557.9,0.00026296,2]
[423213576,1779936647000,-1272.0,0.00026602,2]
[423213586,1779936647000,-4178.03504048,0.0002739,2]
[423213594,1779936647000,-151.0,0.00027397,2]
[423213591,1779936647000,-1467.8,0.00027397,2]
[423213584,1779936647000,-166.05,0.00027,7]
[423213582,1779936647000,-215.46156935,0.00027,7]
[423213587,1779936647000,-8253.85444385,0.0002739,2]
[423213590,1779936647000,-474.57,0.00027397,2]
[423213589,1779936647000,-300.0,0.00027397,2]
[423213592,1779936647000,-151.0,0.00027397,2]
[423213588,1779936647000,-1500.0,0.00027397,2]
[423213593,1779936647000,-151.0,0.00027397,2]
[423213603,1779936647000,-151.0,0.00027397,2]
[423213595,1779936647000,-151.0,0.00027397,2]
[423213604,1779936647000,-151.0,0.00027397,2]
[423213569,1779936647000,-1354.11585035,0.00026014,4]
[423213585,1779936647000,-332.29,0.000272,7]
[423213570,1779936647000,-1020.0,0.000261,2]
[423213552,1779936647000,-215.23,0.00025,2]
[423213565,1779936647000,-150.0,0.0002589,2]
[423213599,1779936647000,-151.0,0.00027397,2]
[423213540,1779936647000,-151.0,0.00024658,2]
[423213541,1779936647000,-151.0,0.00024658,2]
[423213542,1779936647000,-256.0,0.000247,5]
[423213539,1779936647000,-151.0,0.00024658,2]
[423213545,1779936647000,-21777.00392127,0.00025,2]
[423213543,1779936647000,-158.0,0.0002484,2]
[423213546,1779936647000,-93733.31962622,0.00025,2]
[423213549,1779936647000,-273.04053689,0.00025,2]
[423213547,1779936647000,-259.11182087,0.00025,2]
[423213551,1779936647000,-215.23,0.00025,2]
[423213556,1779936647000,-215.23,0.00025,2]
[423213553,1779936647000,-215.23,0.00025,2]
[423213548,1779936647000,-386.10107286,0.00025,2]
[423213555,1779936647000,-215.23,0.00025,2]
[423213554,1779936647000,-215.23,0.00025,2]
[423213558,1779936647000,-215.23,0.00025,2]
[423213550,1779936647000,-719.2790763,0.00025,2]
[423213557,1779936647000,-215.23,0.00025,2]